bitfinex/quotes_BTCUSD_20230115
["timestamp","ask_amount","ask_price","bid_price","bid_amount"]
[1673773958920,0.0054593,20619.0,20618.0,0.1]
[1673773958922,0.0054593,20619.0,20618.0,0.09609355]
[1673773959175,0.0054593,20619.0,20618.0,0.39609355]
[1673773959695,0.0054593,20619.0,20618.0,0.09609355]
[1673773960217,0.0054593,20619.0,20617.0,1.062072]
[1673773960481,0.0054593,20619.0,20617.0,0.970072]
[1673773960745,0.0054593,20619.0,20618.0,0.092]
[1673773961003,0.0054593,20619.0,20618.0,0.192]
[1673773961556,0.0054593,20619.0,20618.0,0.1]
[1673773961806,0.0054593,20619.0,20618.0,0.585013]
[1673773962070,0.0054593,20619.0,20618.0,0.885013]
[1673773962336,0.0054593,20619.0,20618.0,0.977013]
[1673773963415,0.0054593,20619.0,20618.0,1.36221469]
[1673773963675,0.00468921,20625.0,20619.0,0.2206607]
[1673773963977,0.00468921,20625.0,20620.0,2.71698969]
[1673773964234,0.48422308,20625.0,20620.0,2.71698969]
[1673773964495,0.3803163,20623.0,20621.0,0.1]
[1673773964754,0.3803163,20623.0,20620.0,1.269894]
[1673773964755,0.57104225,20623.0,20620.0,1.269894]
[1673773965018,0.57104225,20623.0,20618.0,0.484994]
[1673773965019,0.33291289,20623.0,20618.0,0.484994]
[1673773965283,0.33291289,20623.0,20618.0,0.584994]
[1673773965545,0.00043445,20623.0,20618.0,0.584994]
[1673773965807,0.29852644,20622.0,20618.0,0.1]
[1673773966065,0.29852644,20622.0,20617.0,0.2945]
[1673773966356,0.29852644,20622.0,20617.0,0.1]
[1673773967631,0.19072595,20621.0,20615.0,3.30556441]
[1673773967883,0.19072595,20620.0,20615.0,3.30556441]
[1673773968173,0.19072595,20619.0,20615.0,0.62956441]
[1673773968427,0.54701017,20619.0,20615.0,0.72956441]
[1673773968680,0.35628422,20619.0,20615.0,0.72956441]
[1673773968928,0.484909,20623.0,20615.0,0.72956441]
[1673773969195,0.30141194,20621.0,20615.0,0.72956441]
[1673773969462,0.49213789,20621.0,20616.0,0.1]
[1673773969719,0.30141194,20621.0,20617.0,0.485034]
[1673773969967,0.30141194,20621.0,20618.0,0.3]
[1673773970218,0.38062954,20622.0,20619.0,0.1]
[1673773970539,0.82285721,20625.0,20619.0,0.1]
[1673773970727,0.30735041,20624.0,20619.0,0.584972]
[1673773970977,0.30735041,20624.0,20620.0,0.3]
[1673773971232,0.00468921,20625.0,20621.0,0.1]
[1673773971488,0.31899619,20627.0,20621.0,1.4407807]
[1673773971787,0.00043445,20624.0,20621.0,0.969874]
[1673773972004,0.00043445,20624.0,20621.0,0.484937]
[1673773972005,0.19072595,20624.0,20621.0,0.484937]
[1673773972253,0.19072595,20623.0,20618.0,0.33127771]
[1673773972520,0.19072595,20622.0,20617.0,0.76588594]
[1673773972771,0.19072595,20621.0,20617.0,0.48502]
[1673773973036,0.1911604,20620.0,20616.0,0.485052]
[1673773973291,0.621704,20624.0,20616.0,0.485052]
[1673773973292,0.19072595,20619.0,20616.0,0.485052]
[1673773973557,0.56896837,20621.0,20619.0,0.28745556]
[1673773973815,0.484874,20624.0,20619.0,0.28745556]
[1673773974066,0.32426784,20622.0,20620.0,0.19072595]
[1673773974394,0.32426784,20622.0,20619.0,0.28745556]
[1673773974824,0.00043445,20621.0,20619.0,0.28745556]
[1673773975071,0.306448,20621.0,20619.0,0.28745556]
[1673773975593,0.484874,20624.0,20619.0,0.28745556]
[1673773975850,0.39265793,20622.0,20620.0,0.19072595]
[1673773976103,0.39265793,20622.0,20619.0,0.28745556]
[1673773976355,0.39265793,20622.0,20619.0,0.77244456]
[1673773976986,0.484874,20624.0,20619.0,0.77244456]
[1673773977168,0.2851159,20623.0,20620.0,0.1]
[1673773977414,0.2851159,20623.0,20620.0,0.19072595]
[1673773977673,0.2851159,20623.0,20620.0,0.1]
[1673773978251,0.31608127,20625.0,20620.0,1.07568695]
[1673773978511,0.31608127,20625.0,20621.0,0.19072595]
[1673773978763,0.31608127,20625.0,20621.0,0.97565795]
[1673773979550,0.324401,20627.0,20622.0,0.1]
[1673773979814,0.002501,20627.0,20623.0,0.19072595]
[1673773980068,0.38594476,20627.0,20624.0,0.19072595]
[1673773980315,0.002501,20627.0,20625.0,0.1]
[1673773980586,0.002501,20627.0,20625.0,0.884848]
[1673773980850,0.40442329,20627.0,20625.0,0.484848]
[1673773981115,0.00293545,20627.0,20625.0,0.484848]
[1673773981381,0.002501,20627.0,20625.0,0.484848]
[1673773982430,0.002501,20627.0,20624.0,0.48486]
[1673773982431,0.3899896,20627.0,20624.0,0.48486]
[1673773982701,0.3899896,20627.0,20623.0,0.484883]
[1673773982958,0.57114922,20627.0,20623.0,0.484883]
[1673773983210,0.48229388,20626.0,20620.0,0.484949]
[1673773983574,0.18115962,20625.0,20620.0,0.484949]
[1673773983824,0.18115962,20624.0,20619.0,1.75051656]
[1673773984079,0.18115962,20623.0,20620.0,0.1]
[1673773984327,0.002501,20627.0,20621.0,0.47720169]
[1673773984600,0.002501,20627.0,20622.0,1.43626696]
[1673773984856,0.002501,20627.0,20623.0,0.56460811]
[1673773985125,0.002501,20627.0,20624.0,1.16045995]
[1673773985386,0.0019615,20627.0,20625.0,0.19072595]
[1673773985634,0.22274244,20628.0,20626.0,0.29072595]
[1673773985635,0.20106305,20628.0,20626.0,0.29072595]
[1673773985888,0.20106305,20628.0,20627.0,0.3]
[1673773986402,0.20106305,20628.0,20626.0,0.969648]
[1673773987421,0.53440538,20628.0,20626.0,0.969648]
[1673773987673,0.53440538,20628.0,20625.0,0.484831]
[1673773987919,0.715565,20628.0,20624.0,0.484869]
[1673773988174,0.715565,20628.0,20624.0,0.584869]
[1673773988426,0.53397093,20628.0,20624.0,0.77559495]
[1673773988642,0.31122239,20627.0,20624.0,0.484869]
[1673773988933,0.38222267,20628.0,20625.0,0.4]
[1673773988934,0.20106305,20628.0,20625.0,0.4]
[1673773989186,0.20106305,20628.0,20626.0,0.1]
[1673773989709,0.20106305,20628.0,20626.0,0.584824]
[1673773989958,0.20106305,20628.0,20627.0,0.3]
[1673773990468,0.20106305,20628.0,20627.0,0.784801]
[1673773991496,0.20106305,20628.0,20627.0,1.16268243]
[1673773991747,0.20106305,20628.0,20627.0,0.784801]
[1673773992269,0.20106305,20628.0,20627.0,1.14584266]
[1673773992776,0.04040267,20630.0,20627.0,1.98275488]
[1673773993037,0.04040267,20630.0,20629.0,1.554262]
[1673773993281,0.04040267,20630.0,20629.0,1.854262]
[1673773993548,0.79710214,20631.0,20629.0,1.99840627]
[1673773993812,1.17207962,20631.0,20629.0,1.44685196]
[1673773994069,1.17207962,20631.0,20628.0,0.50999157]
[1673773994070,1.35367369,20631.0,20628.0,0.3658473]
[1673773994324,1.35367369,20631.0,20628.0,0.79643282]
[1673773994325,1.17207962,20631.0,20628.0,0.79643282]
[1673773995112,0.00043445,20630.0,20628.0,0.79643282]
[1673773995853,1.17207962,20631.0,20628.0,0.79643282]
[1673773996373,0.38345145,20630.0,20628.0,0.79643282]
[1673773996632,0.383017,20630.0,20628.0,0.79643282]
[1673773997706,0.79710214,20631.0,20628.0,0.79643282]
[1673773997973,0.79710214,20631.0,20630.0,0.1]
[1673773998227,0.79710214,20631.0,20630.0,0.77545595]
[1673773998482,0.79710214,20631.0,20630.0,0.88473]
[1673773998697,0.79710214,20631.0,20630.0,1.02887427]
[1673773998998,0.79710214,20631.0,20630.0,1.46144784]
[1673773999243,0.79710214,20631.0,20630.0,1.31730357]
[1673773999496,0.79710214,20631.0,20630.0,1.46144784]
[1673774000021,0.79710214,20631.0,20630.0,1.96079976]
[1673774000277,0.79710214,20631.0,20630.0,2.24791805]
[1673774000553,0.79710214,20631.0,20630.0,1.88820752]
[1673774000806,0.79710214,20631.0,20630.0,2.24791805]
[1673774001074,0.79710214,20631.0,20630.0,2.35974066]
[1673774001325,0.79710214,20631.0,20630.0,1.40072557]
[1673774001625,0.79710214,20631.0,20630.0,1.25626314]
[1673774001839,0.74780056,20631.0,20630.0,1.61741921]
[1673774002109,0.74780056,20631.0,20630.0,2.33312454]
[1673774002363,0.74780056,20631.0,20630.0,2.27925158]
[1673774002625,0.74780056,20631.0,20630.0,2.42255758]
[1673774002885,0.74780056,20631.0,20630.0,1.34682316]
[1673774003394,0.74780056,20631.0,20630.0,2.27921002]
[1673774003660,0.74780056,20631.0,20630.0,1.34682316]
[1673774003930,0.74780056,20631.0,20630.0,1.20239018]
[1673774004436,0.74780056,20631.0,20630.0,0.90239018]
[1673774004712,0.92939463,20631.0,20628.0,0.51028028]
[1673774004960,0.18115962,20630.0,20628.0,0.75020031]
[1673774005230,1.23087602,20631.0,20628.0,0.75020031]
[1673774006802,0.36773274,20630.0,20628.0,0.75020031]
[1673774008153,0.36773274,20630.0,20628.0,0.3658473]
[1673774008635,0.36773274,20630.0,20628.0,0.3668603]
[1673774008928,0.74780056,20631.0,20629.0,0.32794994]
[1673774009179,0.74780056,20631.0,20630.0,0.19072595]
[1673774009526,0.74780056,20631.0,20630.0,0.49072595]
[1673774009704,0.74780056,20631.0,20630.0,1.17695728]
[1673774011515,0.74780056,20631.0,20630.0,0.48473]
[1673774011771,1.39076821,20631.0,20628.0,1.32188973]
[1673774012080,0.56354421,20630.0,20628.0,0.3658473]
[1673774012319,0.56397866,20630.0,20628.0,0.3658473]
[1673774012836,0.80629,20629.0,20628.0,0.3658473]
[1673774013636,0.321536,20629.0,20628.0,0.3658473]
[1673774013685,0.484754,20629.0,20628.0,0.3658473]
[1673774014776,0.66634807,20629.0,20628.0,0.3658473]
[1673774014789,0.49368845,20629.0,20628.0,0.3658473]
[1673774014970,0.81522445,20629.0,20628.0,0.3658473]
[1673774015410,1.21158166,20629.0,20628.0,0.3658473]
[1673774015632,1.21114721,20629.0,20628.0,0.3658473]
[1673774016109,0.88961121,20629.0,20628.0,0.3658473]
[1673774016291,1.21114721,20629.0,20628.0,0.3658473]
[1673774016530,0.40485721,20629.0,20628.0,0.3658473]
[1673774016979,0.39635721,20629.0,20628.0,0.3658473]
[1673774019476,0.39679166,20629.0,20628.0,0.3658473]
[1673774021566,0.71832766,20629.0,20628.0,0.3658473]
[1673774021836,1.20308166,20629.0,20628.0,0.3658473]
[1673774022046,2.19765617,20629.0,20628.0,0.3658473]
[1673774022614,1.78504099,20629.0,20628.0,0.3658473]
[1673774023389,2.27099576,20629.0,20628.0,0.3658473]
[1673774023683,2.50971115,20629.0,20628.0,0.3658473]
[1673774023899,2.77285745,20629.0,20628.0,0.3658473]
[1673774024155,2.77285745,20629.0,20621.0,0.50177787]
[1673774024156,3.8036003,20629.0,20621.0,0.50177787]
[1673774024406,2.67649033,20628.0,20621.0,0.50177787]
[1673774024658,1.554502,20626.0,20620.0,0.37495682]
[1673774024914,1.66844916,20625.0,20620.0,0.01199319]
[1673774025187,2.05734462,20624.0,20620.0,0.01199319]
[1673774025444,0.39863262,20623.0,20620.0,0.01199319]
[1673774025694,1.291374,20622.0,20620.0,0.01199319]
[1673774025948,0.969838,20622.0,20620.0,0.01199319]
[1673774026441,0.969838,20622.0,20620.0,0.35798093]
[1673774028462,1.32925173,20622.0,20620.0,0.35798093]
[1673774030042,0.969838,20622.0,20620.0,0.35798093]
[1673774030289,0.96945502,20622.0,20620.0,0.35798093]
[1673774030544,0.48453602,20622.0,20620.0,0.35798093]
[1673774031633,0.18965962,20621.0,20616.0,0.14443298]
[1673774031884,1.08767062,20620.0,20615.0,0.01410297]
[1673774032147,0.39863262,20619.0,20615.0,0.01410297]
[1673774032402,1.95774662,20618.0,20615.0,0.01410297]
[1673774032705,0.208973,20617.0,20615.0,0.01410297]
[1673774032972,1.785216,20616.0,20615.0,0.01410297]
[1673774033463,1.46368,20616.0,20615.0,0.01410297]
[1673774033715,1.785216,20616.0,20615.0,0.01410297]
[1673774034562,2.085216,20616.0,20615.0,0.01410297]
[1673774034818,1.785216,20616.0,20615.0,0.01410297]
[1673774035366,0.0085,20616.0,20615.0,0.01410297]
[1673774035632,0.00883977,20616.0,20615.0,0.01410297]
[1673774037610,0.0085,20616.0,20615.0,0.57252017]
[1673774037865,0.4575591,20619.0,20615.0,1.05760317]
[1673774038108,0.00033977,20618.0,20616.0,0.37535327]
[1673774038627,0.4575591,20619.0,20616.0,0.37535327]
[1673774038893,0.35658687,20622.0,20617.0,0.19072595]
[1673774039194,0.40913519,20621.0,20618.0,0.67572695]
[1673774039663,0.40913519,20621.0,20618.0,0.485001]
[1673774040497,0.484881,20624.0,20618.0,0.67572695]
[1673774040699,0.48565058,20623.0,20619.0,0.60943866]
[1673774040958,0.89033484,20626.0,20620.0,0.67568695]
[1673774041219,0.35685952,20625.0,20621.0,0.19072595]
[1673774041480,0.35685952,20625.0,20622.0,0.19072595]
[1673774041481,0.35662252,20625.0,20622.0,0.19072595]
[1673774041782,0.35696229,20625.0,20622.0,0.19072595]
[1673774041992,0.47720169,20622.0,20613.0,0.50446207]
[1673774042256,0.47720169,20622.0,20611.0,0.15549495]
[1673774042257,0.00999,20614.0,20611.0,0.15549495]
[1673774042513,0.321536,20613.0,20608.0,0.01271923]
[1673774042775,0.630036,20612.0,20609.0,0.35578982]
[1673774043055,0.806713,20611.0,20610.0,0.38720965]
[1673774043324,1.78356431,20611.0,20608.0,0.01271923]
[1673774043579,0.69863262,20610.0,20608.0,0.01271923]
[1673774043842,2.18837684,20609.0,20608.0,0.01271923]
[1673774044097,2.49687684,20609.0,20608.0,0.01252923]
[1673774044612,3.02530491,20609.0,20607.0,1.18200796]
[1673774044613,2.84414529,20609.0,20607.0,1.18200796]
[1673774044878,1.4591132,20608.0,20607.0,1.18200796]
[1673774045135,1.93182303,20608.0,20607.0,1.18200796]
[1673774046161,2.4119296,20608.0,20607.0,0.14639296]
[1673774046420,0.1,20607.0,20606.0,0.01334157]
[1673774046678,1.79707887,20607.0,20601.0,0.42129313]
[1673774046954,0.00999,20603.0,20601.0,0.42129313]
[1673774047201,0.00999,20603.0,20598.0,0.6436]
[1673774047202,1.95886262,20602.0,20598.0,0.6436]
[1673774047453,0.49863262,20601.0,20598.0,1.02100971]
[1673774047722,1.48788796,20600.0,20597.0,0.40638117]
[1673774048021,1.48788796,20600.0,20595.0,0.01435179]
[1673774048022,0.39863262,20599.0,20598.0,0.40392933]
[1673774048504,0.39863262,20599.0,20596.0,0.43403571]
[1673774048505,0.70234927,20599.0,20596.0,0.43403571]
[1673774048508,0.1,20598.0,20597.0,0.39303115]
[1673774048758,0.90702,20598.0,20595.0,0.01435179]
[1673774049026,0.39804962,20597.0,20595.0,0.01435179]
[1673774049280,1.292597,20596.0,20595.0,0.01435179]
[1673774049536,1.76121846,20596.0,20595.0,0.01435179]
[1673774049795,2.086628,20596.0,20595.0,0.01435179]
[1673774050051,2.3556882,20596.0,20595.0,0.01435179]
[1673774050319,1.78696777,20596.0,20595.0,0.68645]
[1673774050580,0.815566,20596.0,20595.0,0.11355179]
[1673774050846,0.0085,20596.0,20595.0,0.4626812]
[1673774051105,0.0085,20597.0,20595.0,0.01435179]
[1673774051358,0.321535,20596.0,20595.0,0.01435179]
[1673774051612,0.321535,20596.0,20595.0,0.00895729]
[1673774051613,0.67937188,20596.0,20595.0,0.00895729]
[1673774051875,0.1,20595.0,20593.0,0.64331753]
[1673774052214,0.21723077,20594.0,20593.0,0.64331753]
[1673774052393,0.21723077,20594.0,20593.0,0.01031753]
[1673774052907,1.2766409,20594.0,20593.0,0.01031753]
[1673774053176,1.76383259,20594.0,20593.0,0.01031753]
[1673774053461,2.16840277,20594.0,20592.0,0.01983164]
[1673774053723,1.60330687,20593.0,20592.0,1.64e-06]
[1673774053974,2.89696305,20593.0,20589.0,0.01704202]
[1673774054228,0.11602,20590.0,20589.0,0.01704202]
[1673774054485,0.815707,20590.0,20589.0,0.01894633]
[1673774054981,0.330035,20590.0,20589.0,0.22417633]
[1673774054984,0.0085,20590.0,20589.0,0.44422401]
[1673774055240,0.0085,20590.0,20589.0,0.34502401]
[1673774055760,0.1,20592.0,20589.0,0.01704202]
[1673774056074,0.73326627,20592.0,20589.0,0.01704202]
[1673774056294,0.73326627,20592.0,20589.0,0.64794202]
[1673774056295,0.321535,20591.0,20589.0,0.64794202]
[1673774056554,0.208391,20590.0,20589.0,1.01605075]
[1673774056807,0.485657,20591.0,20589.0,1.01605075]
[1673774057078,0.585606,20593.0,20590.0,0.19072595]
[1673774057079,0.485606,20593.0,20590.0,0.19072595]
[1673774057350,0.485508,20597.0,20591.0,0.29072595]
[1673774057610,0.485472,20599.0,20592.0,0.19072595]
[1673774057868,0.36747637,20599.0,20593.0,0.19072595]
[1673774058120,0.36747637,20599.0,20594.0,0.19072595]
[1673774058377,0.36747637,20599.0,20595.0,0.19072595]
[1673774058641,0.87281171,20601.0,20596.0,0.82942595]
[1673774058891,0.485401,20602.0,20597.0,0.19072595]
[1673774059158,0.29842584,20601.0,20598.0,0.19072595]
[1673774059425,0.585436,20600.0,20596.0,0.6387]
[1673774059698,0.49015646,20599.0,20596.0,0.6387]
[1673774060247,0.1,20597.0,20596.0,0.6387]
[1673774060509,0.321535,20597.0,20596.0,0.6387]
[1673774060757,0.330035,20597.0,20596.0,0.6387]
[1673774061011,0.330035,20597.0,20596.0,0.90431821]
[1673774061267,0.970972,20598.0,20596.0,0.63879517]
[1673774061538,0.31416118,20597.0,20596.0,0.6387]
[1673774061793,1.12120318,20597.0,20596.0,0.6387]
[1673774062059,1.45320492,20597.0,20593.0,0.37622173]
[1673774062317,1.0713531,20596.0,20590.0,0.33120028]
[1673774062593,0.00999,20593.0,20590.0,0.6357]
[1673774062850,1.84272723,20592.0,20590.0,0.6357]
[1673774063096,0.621535,20591.0,20589.0,0.01704202]
[1673774063347,1.673907,20590.0,20589.0,0.01704202]
[1673774063892,1.673907,20590.0,20589.0,0.36170754]
[1673774064103,1.465516,20590.0,20589.0,0.01704202]
[1673774064367,0.979844,20590.0,20589.0,0.36598037]
[1673774064638,0.485625,20592.0,20589.0,0.26678037]
[1673774064639,0.33479008,20591.0,20589.0,0.26678037]
[1673774064893,0.37189627,20590.0,20589.0,0.65124202]
[1673774065194,0.69343127,20590.0,20589.0,0.01704202]
[1673774065449,0.9084674,20590.0,20589.0,0.01704202]
[1673774065701,0.99343127,20590.0,20589.0,0.01704202]
[1673774065953,0.67189627,20590.0,20589.0,0.01704202]
[1673774066238,0.640025,20590.0,20589.0,0.01704202]
[1673774066517,0.94087219,20590.0,20589.0,0.01704202]
[1673774066811,0.640025,20590.0,20589.0,0.01704202]
[1673774067096,1.17706412,20590.0,20589.0,0.01704202]
[1673774067390,1.03547191,20590.0,20589.0,0.01704202]
[1673774067652,2.17330231,20590.0,20589.0,0.01704202]
[1673774068135,1.84301868,20590.0,20589.0,0.01704202]
[1673774068138,2.1685913,20590.0,20589.0,0.01704202]
[1673774068390,1.92881108,20590.0,20589.0,0.01704202]
[1673774068650,1.60323846,20590.0,20589.0,0.01704202]
[1673774068913,1.90771697,20590.0,20589.0,0.01704202]
[1673774069430,1.11168551,20590.0,20589.0,0.01704202]
[1673774069961,0.99854151,20590.0,20589.0,0.01704202]
[1673774070220,1.11168551,20590.0,20589.0,0.01704202]
[1673774070508,0.971321,20591.0,20589.0,0.45819621]
[1673774070509,0.48567,20591.0,20589.0,0.45819621]
[1673774070760,0.38982073,20592.0,20589.0,0.45819621]
[1673774070761,0.87545773,20592.0,20589.0,0.45819621]
[1673774071043,0.33675222,20591.0,20589.0,0.01713722]
[1673774071306,0.33675222,20591.0,20589.0,0.01704202]
[1673774071570,0.33641245,20591.0,20589.0,0.29936235]
[1673774071851,0.0085,20590.0,20589.0,0.29936235]
[1673774072108,0.485569,20595.0,20589.0,0.20786317]
[1673774072368,0.485541,20596.0,20590.0,0.19072595]
[1673774072369,0.77473057,20596.0,20590.0,0.19072595]
[1673774072642,0.30937724,20595.0,20591.0,0.19072595]
[1673774073178,0.30937724,20595.0,20592.0,0.608]
[1673774073437,0.30937724,20595.0,20592.0,0.79872595]
[1673774073699,0.9721451,20599.0,20593.0,0.19072595]
[1673774073957,0.485441,20600.0,20594.0,0.19072595]
[1673774073958,0.28288338,20598.0,20594.0,0.19072595]
[1673774074764,0.485465,20599.0,20594.0,0.67629995]
[1673774075016,1.18629372,20599.0,20595.0,0.37255505]
[1673774075267,0.00033977,20598.0,20595.0,0.563281]
[1673774075558,0.97133377,20598.0,20595.0,0.40800212]
[1673774076046,0.49007761,20601.0,20595.0,0.19072595]
[1673774076304,0.49007761,20601.0,20596.0,0.19072595]
[1673774076558,0.84233926,20601.0,20597.0,0.79332595]
[1673774076818,0.00033977,20600.0,20597.0,0.79332595]
[1673774077086,0.49428877,20600.0,20597.0,0.6026]
[1673774077322,0.49428877,20600.0,20598.0,0.2910171]
[1673774077579,0.49428877,20600.0,20597.0,0.6026]
[1673774077580,0.88273539,20600.0,20597.0,0.6026]
[1673774077825,0.66279868,20599.0,20597.0,0.6026]
[1673774078089,0.970968,20598.0,20597.0,0.6026]
[1673774078347,0.979468,20598.0,20597.0,0.6026]
[1673774080145,1.64743151,20598.0,20597.0,0.6026]
[1673774080401,1.95742151,20598.0,20597.0,0.6026]
[1673774080666,1.610993,20598.0,20594.0,0.37472511]
[1673774080998,1.610993,20598.0,20592.0,0.6424]
[1673774080999,1.17974359,20597.0,20592.0,0.6424]
[1673774081186,0.16862146,20597.0,20596.0,0.18929748]
[1673774081438,0.493984,20598.0,20597.0,0.36387199]
[1673774081697,0.485447,20600.0,20597.0,0.55459794]
[1673774081698,0.485461,20599.0,20597.0,0.55459794]
[1673774081955,0.485447,20600.0,20597.0,0.55459794]
[1673774082213,0.00033977,20599.0,20598.0,0.00011021]
[1673774082477,0.485447,20600.0,20593.0,0.485581]
[1673774082478,0.87103416,20600.0,20593.0,0.485581]
[1673774082728,0.87103416,20600.0,20594.0,0.39886732]
[1673774082729,2.44500661,20599.0,20594.0,0.39886732]
[1673774082994,1.4698978,20598.0,20594.0,0.39886732]
[1673774083282,1.179415,20597.0,20594.0,0.39886732]
[1673774083588,0.330035,20596.0,20592.0,0.6424]
[1673774083842,0.65411969,20595.0,20593.0,0.31816295]
[1673774084091,0.485559,20595.0,20593.0,0.31816295]
[1673774084337,0.48589877,20595.0,20593.0,0.31816295]
[1673774085126,0.0085,20594.0,20592.0,0.6424]
[1673774085384,0.485601,20593.0,20592.0,1.02396052]
[1673774085638,0.485601,20593.0,20592.0,1.02405646]
[1673774085911,0.485601,20593.0,20592.0,1.02396052]
[1673774087932,0.485512,20597.0,20592.0,0.6424]
[1673774087933,0.485548,20596.0,20592.0,0.6424]
[1673774088182,0.81063052,20598.0,20593.0,0.19072595]
[1673774088434,0.0085,20597.0,20594.0,0.19072595]
[1673774089175,0.0085,20597.0,20595.0,0.00010953]
[1673774090174,0.32513552,20598.0,20595.0,0.00010953]
[1673774090436,0.49007861,20601.0,20595.0,0.00010953]
[1673774090727,1.36437653,20600.0,20596.0,0.53416343]
[1673774091008,0.97119476,20599.0,20597.0,0.6259]
[1673774091485,0.0085,20598.0,20597.0,0.6259]
[1673774092245,0.0085,20599.0,20597.0,0.81662595]
[1673774092489,0.0085,20600.0,20597.0,0.81662595]
[1673774093013,0.0085,20600.0,20598.0,0.29871806]
[1673774093014,0.00033977,20599.0,20598.0,0.29871806]
[1673774093262,0.0085,20600.0,20598.0,0.29871806]
[1673774094008,0.00033977,20599.0,20598.0,0.29871806]
[1673774094264,0.37069258,20600.0,20597.0,0.6259]
[1673774094514,1.96956299,20599.0,20597.0,0.6259]
[1673774094781,0.330035,20598.0,20597.0,0.6259]
[1673774095012,1.78712573,20598.0,20597.0,0.6259]
[1673774095506,2.18521769,20598.0,20594.0,0.35719516]
[1673774095799,0.208391,20597.0,20594.0,0.35719516]
[1673774096074,0.485531,20596.0,20594.0,0.35719516]
[1673774096591,0.48587077,20596.0,20594.0,0.35719516]
[1673774096838,0.48587077,20596.0,20593.0,0.6034]
[1673774097098,0.0085,20595.0,20591.0,0.76077704]
[1673774097359,0.0085,20595.0,20592.0,0.6034]
[1673774097360,1.46126169,20594.0,20592.0,0.6034]
[1673774097612,0.97150577,20594.0,20592.0,0.92199494]
[1673774097865,0.971166,20594.0,20593.0,0.37467543]
[1673774098119,0.485583,20594.0,20593.0,0.09930952]
[1673774098375,0.485583,20594.0,20593.0,0.43102881]
[1673774099115,0.79539411,20595.0,20593.0,0.43102881]
[1673774099908,0.485551,20596.0,20593.0,0.43102881]
[1673774100203,0.81654992,20596.0,20593.0,0.43102881]
[1673774100411,0.33099892,20596.0,20593.0,0.43102881]
[1673774100667,0.48552,20597.0,20594.0,0.34571323]
[1673774100926,0.48552,20597.0,20593.0,0.00010952]
[1673774100927,0.485466,20599.0,20595.0,0.19072595]
[1673774101204,0.79263262,20600.0,20596.0,0.19072595]
[1673774101478,0.79263262,20600.0,20597.0,0.19072595]
[1673774101703,0.30718262,20600.0,20597.0,0.19072595]
[1673774101962,0.49006961,20601.0,20597.0,0.19072595]
[1673774102219,0.00464861,20601.0,20597.0,0.19072595]
[1673774102736,0.00464861,20601.0,20598.0,0.6314]
[1673774103226,0.00464861,20601.0,20598.0,1.30760095]
[1673774103494,0.00464861,20601.0,20599.0,0.29949375]
[1673774103737,0.00464861,20601.0,20599.0,0.88494875]
[1673774104004,0.00464861,20601.0,20599.0,0.78494875]
[1673774104791,0.00464861,20601.0,20600.0,0.20543061]
[1673774105051,0.00304861,20601.0,20600.0,0.20543061]
[1673774105607,0.60333138,20601.0,20598.0,0.6314]
[1673774105867,0.65879788,20600.0,20598.0,0.6314]
[1673774106115,1.187811,20599.0,20598.0,0.6314]
[1673774106397,0.97942,20599.0,20598.0,0.6314]
[1673774106883,0.97092,20599.0,20598.0,0.6314]
[1673774108133,1.292455,20599.0,20598.0,0.6314]
[1673774108632,0.97092,20599.0,20598.0,0.6314]
[1673774108886,1.69433037,20599.0,20598.0,0.6314]
[1673774109137,1.58118637,20599.0,20598.0,0.6314]
[1673774109384,1.69433037,20599.0,20598.0,0.6314]
[1673774109671,1.37279537,20599.0,20598.0,0.6314]
[1673774109929,0.00338838,20601.0,20598.0,0.82212595]
[1673774109930,0.00304861,20601.0,20598.0,0.82212595]
[1673774110769,0.00304861,20601.0,20599.0,0.43564457]
[1673774111025,0.00304861,20601.0,20599.0,0.92109657]
[1673774111284,0.00304861,20601.0,20599.0,0.9477442]
[1673774111551,0.00304861,20601.0,20600.0,0.3]
[1673774111835,0.00304861,20601.0,20600.0,0.585436]
[1673774112367,0.00304861,20601.0,20600.0,1.03035462]
[1673774112630,0.00304861,20601.0,20600.0,1.03055523]
[1673774112898,0.00504061,20602.0,20601.0,0.3068572]
[1673774113199,0.00504061,20602.0,20601.0,1.72270589]
[1673774113465,0.00504061,20602.0,20601.0,1.5776832]
[1673774113979,0.00504061,20602.0,20601.0,1.72270589]
[1673774114262,0.00504061,20602.0,20601.0,2.27826403]
[1673774114571,0.00504061,20602.0,20601.0,2.42304692]
[1673774114843,0.00504061,20602.0,20601.0,1.72256177]
[1673774115629,0.00504061,20602.0,20601.0,1.5776832]
[1673774116402,0.00504061,20602.0,20601.0,1.72256177]
[1673774116908,0.00504061,20602.0,20601.0,1.5776832]
[1673774117421,0.00504061,20602.0,20601.0,1.72256177]
[1673774117930,0.00504061,20602.0,20601.0,1.5776832]
[1673774118474,0.00504061,20602.0,20601.0,1.2776832]
[1673774119226,0.00234311,20602.0,20601.0,1.2776832]
[1673774119788,0.00234311,20602.0,20601.0,1.5776832]
[1673774123572,0.13279741,20604.0,20602.0,0.1]
[1673774123825,0.08841498,20604.0,20603.0,1.66144347]
[1673774124073,0.05314531,20604.0,20603.0,1.66144347]
[1673774124328,0.05314531,20604.0,20603.0,1.95745649]
[1673774124596,0.22204577,20604.0,20603.0,0.29601302]
[1673774124840,0.37539833,20604.0,20601.0,0.36387664]
[1673774125094,0.54395902,20604.0,20601.0,0.36387664]
[1673774125873,0.37505856,20604.0,20602.0,0.34237471]
[1673774126161,0.37505856,20604.0,20602.0,0.34228809]
[1673774126373,0.86040656,20604.0,20602.0,0.34228809]
[1673774126626,0.86040656,20604.0,20601.0,0.0016272]
[1673774127138,0.36116199,20603.0,20601.0,0.0016272]
[1673774127419,0.84618922,20603.0,20601.0,0.30868846]
[1673774128154,0.84652899,20603.0,20601.0,0.30868846]
[1673774128407,0.485367,20603.0,20602.0,0.00014143]
[1673774128668,0.53849331,20604.0,20602.0,0.37448865]
[1673774128920,0.05314531,20604.0,20602.0,0.37448865]
[1673774129169,0.05314531,20604.0,20602.0,0.5652146]
[1673774129431,0.05314531,20604.0,20602.0,0.33394114]
[1673774130281,0.05314531,20604.0,20602.0,0.98224114]
[1673774130531,0.05314531,20604.0,20602.0,1.4601534]
[1673774131841,0.05314531,20604.0,20602.0,1.133676]
[1673774132332,0.05314531,20604.0,20603.0,0.4]
[1673774132628,0.05314531,20604.0,20603.0,1.370732]
[1673774133081,0.05314531,20604.0,20603.0,1.99281226]
[1673774133334,0.05314531,20604.0,20603.0,2.37115016]
[1673774133885,0.05314531,20604.0,20603.0,1.84793369]
[1673774134621,0.00504061,20604.0,20603.0,1.84793369]
[1673774135132,0.00504061,20604.0,20603.0,1.85004759]
[1673774136399,0.1736013,20604.0,20602.0,0.14487857]